fUSD/lending_fUSD_20260205
["ID","MTS","AMOUNT","RATE_DAILY","PERIOD"]
[404557124,1770288640597,-151.0,0.00010702,2]
[404557125,1770288640606,-151.0,0.00010702,2]
[404557126,1770288640618,-151.0,0.00010702,2]
[404557127,1770288640627,-151.0,0.00010702,2]
[404557128,1770288640640,-200.0,0.00010702,2]
[404557129,1770288640649,-500.0,0.00010702,2]
[404557130,1770288640659,-500.0,0.00010702,2]
[404557131,1770288640668,-500.0,0.00010702,2]
[404557132,1770288640677,-500.0,0.00010702,2]
[404557133,1770288640686,-500.0,0.00010702,2]
[404557134,1770288640696,-500.0,0.00010702,2]
[404557135,1770288640706,-500.0,0.00010702,2]
[404557136,1770288640715,-500.0,0.00010702,2]
[404557137,1770288640725,-500.0,0.00010702,2]
[404557138,1770288640735,-500.0,0.00010702,2]
[404557139,1770288640747,-500.0,0.00010702,2]
[404557140,1770288640757,-150.99,0.00010707,2]
[404557141,1770288640767,-499.99,0.00010707,2]
[404557142,1770288640776,-999.99,0.00010707,2]
[404557143,1770288640786,-150.99,0.00010707,2]
[404557144,1770288640795,-9999.99,0.00010707,2]
[404557145,1770288640805,-9999.99,0.00010707,2]
[404557146,1770288640815,-299.99,0.00010707,2]
[404557147,1770288640824,-191.91471031,0.00010708,2]
[404557148,1770288640834,-157.41370965,0.00010708,2]
[404557149,1770288640843,-3307.45,0.00010708,2]
[404557150,1770288640853,-4999.99,0.00010708,2]
[404557151,1770288640862,-9999.99,0.00010708,2]
[404557152,1770288640873,-1032.6,0.00010807,2]
[404557153,1770288640882,-166.66,0.00010859,2]
[404557154,1770288640892,-500.0,0.00010959,2]
[404557155,1770288640902,-270.21862608,0.00010959,2]
[404557156,1770288640912,-250.0,0.00010959,2]
[404557157,1770288640921,-195.0,0.00010959,2]
[404557158,1770288640933,-5000.0,0.00010959,2]
[404557159,1770288640942,-1680.0,0.0001096,2]
[404557160,1770288640952,-420.0,0.0001096,2]
[404557161,1770288640961,-250.0,0.0001096,2]
[404557162,1770288640971,-255.0,0.00010961,2]
[404557163,1770288640980,-50124.7588021,0.00011066,2]
[404557164,1770288640989,-250.24316891,0.00011072,2]
[404557165,1770288640998,-195.0,0.00011072,2]
[404557166,1770288641008,-1032.6,0.00011081,2]
[404557167,1770288641017,-17674.64734967,0.00011099,2]
[404557168,1770288641026,-24032.2417963,0.00011099,2]
[404557169,1770288641036,-166.66,0.00011196,2]
[404557170,1770288641045,-200.0,0.0001125,2]
[404557171,1770288641054,-502.94499964,0.0001125,2]
[404557172,1770288641064,-200.0,0.0001125,2]
[404557173,1770288641073,-477.07,0.00011277,2]
[404557174,1770288641082,-24032.2417963,0.00011329,2]
[404557175,1770288641092,-17674.64734967,0.00011329,2]
[404557176,1770288641101,-1032.6,0.00011355,2]
[404557177,1770288641110,-500.0,0.00011409,2]
[404557178,1770288641124,-500.0,0.00011409,2]
[404557179,1770288641134,-151.68281621,0.00011409,2]
[404557180,1770288641144,-500.0,0.00011409,2]
[404557181,1770288641153,-174.11816518,0.00011409,2]
[404557182,1770288641163,-201.77401449,0.00011409,2]
[404557183,1770288641172,-500.0,0.00011409,2]
[404557184,1770288641181,-150.0,0.00011409,2]
[404557185,1770288641191,-150.0,0.00011409,2]
[404557186,1770288641200,-505.36603291,0.00011464,2]
[404557187,1770288641210,-500.0,0.00011464,2]
[404557188,1770288641219,-633.57498961,0.00011464,2]
[404557189,1770288641228,-500.0,0.00011464,2]
[404557190,1770288641238,-150.0,0.00011464,2]
[404557191,1770288641248,-500.0,0.00011519,2]
[404557192,1770288641258,-500.0,0.00011519,2]
[404557193,1770288641267,-200.0,0.00011519,2]
[404557194,1770288641276,-166.66,0.00011532,2]
[404557195,1770288641286,-250.0,0.00011543,2]
[404557196,1770288641295,-500.0,0.00011573,2]
[404557197,1770288641305,-500.0,0.00011573,2]
[404557198,1770288641314,-563.96761622,0.00011628,2]
[404557199,1770288641323,-500.0,0.00011628,2]
[404557200,1770288641333,-1032.6,0.00011629,2]
[404557201,1770288641342,-500.0,0.00011683,2]
[404557202,1770288641351,-580.01386771,0.00011738,2]
[404557203,1770288641360,-200.0,0.00011798,2]
[404557204,1770288641373,-200.0,0.00011798,2]
[404557205,1770288641383,-166.66,0.00011868,2]
[404557206,1770288641393,-1032.6,0.00011903,2]
[404557207,1770288641402,-587.0,0.00012056,2]
[404557208,1770288641412,-2351.0,0.00012056,2]
[404557209,1770288641421,-433.0,0.00012057,2]
[404557210,1770288641430,-152.0,0.00012061,3]
[404557211,1770288641439,-3655.0566225,0.0001213,2]
[404557212,1770288641449,-24032.2417963,0.00012151,2]
[404557213,1770288641458,-17674.64734967,0.00012151,2]
[404557214,1770288641467,-1032.6,0.00012177,2]
[404557215,1770288641480,-243.29171277,0.00012188,2]
[404557216,1770288641489,-200.0,0.00012346,2]
[404557217,1770288641498,-200.0,0.00012346,2]
[404557218,1770288641508,-152.0,0.00012385,4]
[404557219,1770288641518,-250.0,0.00012425,2]
[404557220,1770288641528,-1032.6,0.00012451,2]
[404557221,1770288641537,-301.91,0.00012608,2]
[404557222,1770288641547,-152.0,0.00012709,5]
[404557223,1770288641557,-1032.6,0.00012725,2]
[404557224,1770288641566,-9814.7281092,0.00012725,2]
[404557225,1770288641575,-25901.22276435,0.00012725,2]
[404557226,1770288641585,-45692.82712633,0.00012725,2]
[404557227,1770288641594,-152.93,0.00012735,2]
[404557228,1770288641604,-200.0,0.00012894,2]
[404557229,1770288641615,-200.0,0.00012894,2]
[404557230,1770288641624,-24032.2417963,0.00012972,2]
[404557231,1770288641633,-17674.64734967,0.00012972,2]
[404557232,1770288641643,-1032.6,0.00012999,2]
[404557233,1770288641652,-4567.67,0.00013032,2]
[404557234,1770288641661,-152.0,0.00013033,6]
[404557235,1770288641671,-157.41370964,0.00013105,2]
[404557236,1770288641680,-823.0,0.00013261,2]
[404557237,1770288641689,-3292.0,0.00013261,2]
[404557238,1770288641699,-736.0,0.00013263,2]
[404557239,1770288641708,-1032.6,0.00013273,2]
[404557240,1770288641717,-3240.0,0.00013425,2]
[404557241,1770288641727,-200.0,0.00013442,2]
[404557242,1770288641736,-200.0,0.00013442,2]
[404557243,1770288641745,-1032.6,0.00013547,2]
[404557244,1770288641755,-500.0,0.00013698,2]
[404557245,1770288641764,-500.0,0.00013698,2]
[404557246,1770288641773,-500.0,0.00013698,2]
[404557247,1770288641782,-611.74702431,0.00013698,2]
[404557248,1770288641791,-438.26710356,0.00013698,2]
[404557249,1770288641800,-500.0,0.00013698,2]
[404557250,1770288641809,-500.0,0.00013698,2]
[404557251,1770288641820,-351.5182,0.00013698,2]
[404557252,1770288641829,-3655.0566225,0.00013752,2]
[404557253,1770288641838,-24032.2417963,0.00013793,2]
[404557254,1770288641847,-17674.64734967,0.00013793,2]
[404557255,1770288641856,-1032.6,0.00013821,2]
[404557256,1770288641868,-3195.54718714,0.00013933,2]
[404557257,1770288641877,-200.0,0.0001399,2]
[404557258,1770288641886,-200.0,0.0001399,2]
[404557259,1770288641896,-152.0,0.00014005,9]
[404557260,1770288641905,-160.0,0.00014063,2]
[404557261,1770288641915,-1032.6,0.00014095,2]
[404557262,1770288641924,-152.0,0.00014329,10]
[404557263,1770288641933,-1032.6,0.00014368,2]
[404557264,1770288641943,-200.0,0.00014538,2]
[404557265,1770288641952,-200.0,0.00014538,2]
[404557266,1770288641962,-388.0,0.00014588,2]
[404557267,1770288641971,-219.0,0.00014588,2]
[404557268,1770288641981,-4609.0,0.00014588,2]
[404557269,1770288641991,-500.0,0.000146,2]
[404557270,1770288642000,-500.0,0.000146,2]
[404557271,1770288642009,-500.0,0.000146,2]
[404557272,1770288642018,-500.0,0.000146,2]
[404557273,1770288642027,-173.07272258,0.000146,2]
[404557274,1770288642037,-500.0,0.000146,2]
[404557275,1770288642047,-500.0,0.000146,2]
[404557276,1770288642056,-500.0,0.000146,2]
[404557277,1770288642065,-500.0,0.000146,2]
[404557278,1770288642074,-500.0,0.000146,2]
[404557279,1770288642084,-500.0,0.000146,2]
[404557280,1770288642093,-500.0,0.000146,2]
[404557281,1770288642102,-500.0,0.000146,2]
[404557282,1770288642111,-500.0,0.000146,2]
[404557283,1770288642122,-500.0,0.000146,2]
[404557284,1770288642132,-500.0,0.000146,2]
[404557285,1770288642141,-500.0,0.000146,2]
[404557286,1770288642150,-24032.2417963,0.00014615,2]
[404557287,1770288642160,-17674.64734967,0.00014615,2]
[404557288,1770288642169,-1032.6,0.00014642,2]
[404557289,1770288642178,-152.0,0.00014653,11]
[404557290,1770288642187,-271.06,0.00014694,2]
[404557291,1770288642197,-1032.6,0.00014916,2]
[404557292,1770288642206,-152.0,0.00014977,12]
[404557293,1770288642216,-250.0,0.00015,2]
[404557294,1770288642225,-152.62,0.00015,2]
[404557295,1770288642234,-450.32,0.00015068,2]
[404557296,1770288642244,-200.0,0.00015086,2]
[404557297,1770288642253,-200.0,0.00015086,2]
[404557298,1770288642262,-1000.0,0.00015148,2]
[404557299,1770288642271,-1000.0,0.00015148,2]
[404557300,1770288642280,-500.0,0.00015148,2]
[404557301,1770288642290,-347.37162909,0.00015148,2]
[404557302,1770288642299,-174.61919141,0.0001515,2]
[404557303,1770288642308,-5000.0,0.0001515,2]
[404557304,1770288642318,-200.0,0.0001515,2]
[404557305,1770288642328,-250.0,0.0001515,2]
[404557306,1770288642337,-250.0,0.0001515,2]
[404557307,1770288642347,-209.40437684,0.0001515,2]
[404557308,1770288642355,-721.12765535,0.0001515,2]
[404557309,1770288642365,-250.0,0.0001515,2]
[404557310,1770288642374,-250.0,0.0001515,2]
[404557311,1770288642383,-250.0,0.0001515,2]
[404557312,1770288642392,-250.0,0.0001515,2]
[404557313,1770288642402,-250.0,0.0001515,2]
[404557315,1770288642612,-250.0,0.0001515,2]
[404557316,1770288642624,-250.0,0.0001515,2]
[404557317,1770288642634,-250.0,0.0001515,2]
[404557318,1770288642643,-250.0,0.0001515,2]
[404557319,1770288642652,-250.0,0.0001515,2]
[404557320,1770288642661,-250.0,0.0001515,2]
[404557321,1770288642670,-250.0,0.0001515,2]
[404557322,1770288642679,-228.82569288,0.0001515,2]
[404557323,1770288642688,-250.0,0.0001515,2]
[404557324,1770288642697,-250.0,0.0001515,2]
[404557325,1770288642706,-250.0,0.0001515,2]
[404557326,1770288642715,-250.0,0.0001515,2]
[404557327,1770288642724,-500.0,0.0001515,2]
[404557328,1770288642733,-500.0,0.0001515,2]
[404557329,1770288642743,-500.0,0.0001515,2]
[404557330,1770288642752,-500.0,0.0001515,2]
[404557331,1770288642762,-322.6107,0.0001515,2]
[404557332,1770288642771,-500.0,0.0001515,2]
[404557333,1770288642780,-2000.0,0.0001515,2]
[404557334,1770288642789,-2000.0,0.0001515,2]
[404557335,1770288642798,-2000.0,0.0001515,2]
[404557336,1770288642808,-2000.0,0.0001515,2]
[404557337,1770288642817,-2000.0,0.0001515,2]
[404557338,1770288642826,-2000.0,0.0001515,2]
[404557339,1770288642835,-2000.0,0.0001515,2]
[404557340,1770288642844,-500.0,0.0001515,2]
[404557341,1770288642853,-2000.0,0.0001515,2]
[404557342,1770288642863,-500.0,0.0001515,2]
[404557343,1770288642872,-2000.0,0.0001515,2]
[404557344,1770288642881,-500.0,0.0001515,2]
[404557345,1770288642890,-2000.0,0.0001515,2]
[404557346,1770288642899,-500.0,0.0001515,2]
[404557347,1770288642908,-2000.0,0.0001515,2]
[404557348,1770288642918,-340.31558684,0.0001515,2]
[404557349,1770288642927,-578.20924308,0.0001515,2]
[404557350,1770288642936,-176.28122483,0.0001515,2]
[404557351,1770288642945,-250.0,0.0001515,2]
[404557352,1770288642955,-209.40437684,0.0001515,2]
[404557353,1770288642963,-250.0,0.0001515,2]
[404557354,1770288642973,-250.0,0.0001515,2]
[404557355,1770288642982,-199.92628631,0.0001515,2]
[404557356,1770288642991,-209.40437684,0.0001515,2]
[404557357,1770288643000,-1428.38747117,0.0001515,2]
[404557358,1770288643011,-277.35679052,0.0001515,2]
[404557359,1770288643021,-500.0,0.0001515,2]
[404557360,1770288643030,-500.0,0.0001515,2]
[404557361,1770288643039,-500.0,0.0001515,2]
[404557362,1770288643048,-500.0,0.0001515,2]
[404557363,1770288643057,-500.0,0.0001515,2]
[404557364,1770288643067,-500.0,0.0001515,2]
[404557365,1770288643076,-500.0,0.0001515,2]
[404557366,1770288643085,-494.97768813,0.0001515,2]
[404557367,1770288643094,-743.50770149,0.0001515,2]
[404557368,1770288643103,-500.0,0.0001515,2]
[404557369,1770288643112,-512.54322178,0.0001515,2]
[404557370,1770288643123,-1032.6,0.0001519,2]
[404557371,1770288643132,-217.15233878,0.00015205,2]
[404557372,1770288643141,-500.0,0.00015248,2]
[404557373,1770288643151,-225.18697532,0.0001526,2]
[404557374,1770288643160,-152.0,0.00015301,13]
[404557375,1770288643169,-233.51889341,0.00015315,2]
[404557376,1770288643178,-242.15909246,0.0001537,2]
[404557377,1770288643187,-3655.0566225,0.00015374,2]
[404557378,1770288643196,-251.11897888,0.00015425,2]
[404557379,1770288643205,-24032.2417963,0.00015436,2]
[404557380,1770288643214,-17674.64734967,0.00015436,2]
[404557381,1770288643223,-1032.6,0.00015464,2]
[404557382,1770288643232,-260.4103811,0.0001548,2]
[404557383,1770288643241,-3486.16,0.00015485,2]
[404557384,1770288643250,-157.41370964,0.00015503,2]
[404557385,1770288643260,-270.0455652,0.00015535,2]
[404557386,1770288643269,-280.03725112,0.0001559,2]
[404557387,1770288643278,-152.0,0.00015625,14]
[404557388,1770288643288,-200.0,0.00015634,2]
[404557389,1770288643297,-200.0,0.00015634,2]
[404557390,1770288643306,-290.39862941,0.00015645,2]
[404557391,1770288643315,-1500.0,0.00015696,2]
[404557392,1770288643323,-1500.0,0.00015696,2]
[404557393,1770288643333,-181.08010149,0.00015698,2]
[404557394,1770288643342,-5000.0,0.00015698,2]
[404557395,1770288643351,-200.0,0.00015698,2]
[404557396,1770288643361,-217.15233878,0.00015698,2]
[404557397,1770288643371,-217.15233878,0.00015698,2]
[404557398,1770288643380,-1481.23780761,0.00015698,2]
[404557399,1770288643389,-287.61899177,0.00015698,2]
[404557400,1770288643398,-771.01748645,0.00015698,2]
[404557402,1770288643407,-301.1433787,0.000157,2]
[404557403,1770288643416,-68353.73667249,0.00015725,2]
[404557405,1770288643425,-1032.6,0.00015738,2]
[404557407,1770288643434,-152.0173956,0.00015758,2]
[404557408,1770288643443,-152.0,0.00015949,15]
[404557409,1770288643452,-200.744485,0.00016,2]
[404557410,1770288643462,-1032.6,0.00016012,2]
[404557411,1770288643471,-181.71,0.00016042,2]
[404557412,1770288643484,-3142.0,0.00016046,2]
[404557413,1770288643493,-951.124593,0.00016145,7]
[404557414,1770288643502,-200.0,0.00016182,2]
[404557415,1770288643510,-200.0,0.00016182,2]
[404557417,1770288643521,-92485.0278,0.00016225,2]
[404557419,1770288643530,-1291.24412758,0.00016244,2]
[404557421,1770288643539,-1004.24108191,0.00016244,2]
[404557423,1770288643551,-187.78006525,0.00016246,2]
[404557425,1770288643561,-5000.0,0.00016246,2]
[404557427,1770288643570,-200.0,0.00016246,2]
[404557429,1770288643580,-225.18697532,0.00016246,2]
[404557431,1770288643589,-225.18697532,0.00016246,2]
[404557433,1770288643598,-1536.04360649,0.00016246,2]
[404557435,1770288643607,-298.26089446,0.00016246,2]
[404557437,1770288643616,-799.54513345,0.00016246,2]
[404557439,1770288643626,-152.93,0.00016252,2]
[404557441,1770288643635,-24032.2417963,0.00016257,2]
[404557443,1770288643644,-17674.64734967,0.00016257,2]
[404557445,1770288643653,-152.0,0.00016273,16]
[404557447,1770288643662,-1032.6,0.00016286,2]
[404557449,1770288643671,-152.0173956,0.00016321,2]
[404557451,1770288643680,-301.91,0.00016383,2]
[404557452,1770288643690,-500.0,0.00016437,2]
[404557453,1770288643700,-450.32,0.00016438,2]
[404557454,1770288643709,-334.5472959,0.00016519,2]
[404557455,1770288643719,-1032.6,0.0001656,2]
[404557456,1770288643728,-152.0,0.00016597,17]
[404557457,1770288643737,-200.0,0.0001673,2]
[404557458,1770288643747,-200.0,0.0001673,2]
[404557459,1770288643756,-194.72792766,0.00016794,2]
[404557460,1770288643767,-5000.0,0.00016794,2]
[404557461,1770288643776,-200.0,0.00016794,2]
[404557462,1770288643785,-233.51889341,0.00016794,2]
[404557463,1770288643795,-233.51889341,0.00016794,2]
[404557464,1770288643804,-1592.87721993,0.00016794,2]
[404557465,1770288643813,-309.29654756,0.00016794,2]
[404557466,1770288643822,-829.12830338,0.00016794,2]
[404557467,1770288643832,-152.91785682,0.00016818,2]
[404557468,1770288643842,-1032.6,0.00016834,2]
[404557469,1770288643851,-201.25686723,0.0001687,2]
[404557470,1770288643861,-152.0173956,0.00016883,2]
[404557471,1770288643871,-152.0,0.00016921,18]
[404557472,1770288643881,-93345.4253295,0.0001695,3]
[404557473,1770288643890,-3491.028,0.00016988,2]
[404557474,1770288643901,-616.445,0.00016988,2]
[404557475,1770288643911,-1335.0,0.00016988,2]
[404557476,1770288643920,-1411.0,0.00016988,2]
[404557477,1770288643929,-150.0,0.00016988,2]
[404557478,1770288643938,-1271.0,0.00016988,2]
[404557479,1770288643947,-1205.0,0.00016988,2]
[404557480,1770288643956,-917.0,0.00016988,2]
[404557481,1770288643965,-568.607,0.00016988,2]
[404557482,1770288643974,-3254.0,0.00016988,2]
[404557483,1770288643983,-6581.0,0.00016988,2]
[404557484,1770288643993,-3655.0566225,0.00016996,2]
[404557485,1770288644001,-500.0,0.00016999,2]
[404557486,1770288644011,-500.0,0.00016999,2]
[404557487,1770288644021,-300.0,0.00017,2]
[404557488,1770288644030,-160.0,0.00017,3]
[404557489,1770288644040,-24032.2417963,0.00017079,2]
[404557490,1770288644049,-17674.64734967,0.00017079,2]
[404557491,1770288644059,-1506.0,0.000171,2]
[404557492,1770288644069,-1032.61715052,0.00017108,2]
[404557493,1770288644078,-152.0,0.00017245,19]
[404557494,1770288644088,-1000.0,0.0001726,2]
[404557495,1770288644098,-1000.0,0.0001726,2]
[404557496,1770288644107,-1000.0,0.0001726,2]
[404557497,1770288644119,-1000.0,0.0001726,2]
[404557498,1770288644128,-1000.0,0.0001726,2]
[404557499,1770288644138,-1000.0,0.0001726,2]
[404557500,1770288644147,-1000.0,0.0001726,2]
[404557501,1770288644156,-1000.0,0.0001726,2]
[404557502,1770288644166,-1000.0,0.0001726,2]
[404557503,1770288644175,-1000.0,0.0001726,2]
[404557504,1770288644184,-1000.0,0.0001726,2]
[404557505,1770288644193,-506.851,0.0001726,2]
[404557506,1770288644202,-1000.0,0.0001726,2]
[404557507,1770288644211,-200.0,0.00017278,2]
[404557508,1770288644220,-200.0,0.00017278,2]
[404557509,1770288644229,-773.71,0.00017308,2]
[404557510,1770288644238,-201.93286099,0.00017342,2]
[404557511,1770288644248,-5000.0,0.00017342,2]
[404557512,1770288644257,-200.0,0.00017342,2]
[404557513,1770288644266,-242.15909246,0.00017342,2]
[404557514,1770288644275,-242.15909246,0.00017342,2]
[404557515,1770288644285,-1651.81367706,0.00017342,2]
[404557516,1770288644294,-382.82798597,0.00017342,2]
[404557517,1770288644303,-859.80605061,0.00017342,2]
[404557518,1770288644312,-181.71,0.00017391,2]
[404557519,1770288644321,-293.532685,0.00017403,7]
[404557520,1770288644331,-152.0173956,0.00017446,2]
[404557521,1770288644340,-160.0,0.000175,3]
[404557522,1770288644349,-869.18,0.00017505,2]
[404557523,1770288644358,-152.93,0.00017528,2]
[404557524,1770288644369,-1000.0,0.00017534,2]
[404557525,1770288644379,-152.0,0.00017569,20]
[404557526,1770288644387,-301.91,0.00017617,2]
[404557527,1770288644396,-200.0,0.00017698,2]
[404557528,1770288644405,-150.0,0.00017698,2]
[404557529,1770288644415,-150.0,0.00017753,2]
[404557530,1770288644424,-200.0,0.00017808,2]
[404557531,1770288644433,-436.0,0.00017808,2]
[404557532,1770288644442,-1000.0,0.00017808,2]
[404557533,1770288644451,-431.0,0.00017823,2]
[404557534,1770288644461,-200.0,0.00017826,2]
[404557535,1770288644470,-200.0,0.00017826,2]
[404557536,1770288644483,-200.0,0.00017855,2]
[404557537,1770288644493,-500.0,0.00017856,2]
[404557538,1770288644502,-500.0,0.00017856,2]
[404557539,1770288644511,-200.0,0.00017856,2]
[404557540,1770288644520,-436.0,0.00017863,2]
[404557541,1770288644530,-346.92554585,0.00017888,2]
[404557542,1770288644539,-747.8093786,0.00017889,2]
[404557543,1770288644548,-599.60298507,0.00017889,2]
[404557544,1770288644560,-209.40437684,0.0001789,2]
[404557545,1770288644569,-5000.0,0.0001789,2]
[404557546,1770288644579,-338.87001778,0.0001789,2]
[404557548,1770288644589,-251.11897888,0.0001789,2]
[404557549,1770288644598,-251.11897888,0.0001789,2]
[404557550,1770288644608,-1712.93078312,0.0001789,2]
[404557551,1770288644618,-891.61887448,0.0001789,2]
[404557552,1770288644627,-25000.0,0.00017891,3]
[404557553,1770288644636,-152.0,0.00017892,21]
[404557554,1770288644646,-431.0,0.00017894,2]
[404557555,1770288644655,-457.99797698,0.00017899,2]
[404557556,1770288644664,-500.0,0.00017899,2]
[404557557,1770288644673,-500.0,0.00017899,2]
[404557558,1770288644683,-500.0,0.00017899,2]
[404557559,1770288644692,-500.0,0.00017899,2]
[404557560,1770288644701,-500.0,0.00017899,2]
[404557561,1770288644711,-500.0,0.00017899,2]
[404557562,1770288644720,-500.0,0.00017899,2]
[404557563,1770288644729,-500.0,0.00017899,2]
[404557564,1770288644738,-500.0,0.00017899,2]
[404557565,1770288644746,-500.0,0.00017899,2]
[404557566,1770288644756,-500.0,0.00017899,2]
[404557567,1770288644764,-500.0,0.00017899,2]
[404557568,1770288644774,-500.0,0.00017899,2]
[404557569,1770288644783,-500.0,0.00017899,2]
[404557570,1770288644791,-500.0,0.00017899,2]
[404557571,1770288644800,-157.41370964,0.000179,2]
[404557572,1770288644809,-25000.0,0.000179,3]
[404557573,1770288644819,-9068.51831638,0.000179,3]
[404557574,1770288644827,-24032.2417963,0.000179,2]
[404557575,1770288644837,-160.0,0.000179,3]
[404557576,1770288644847,-17674.64734967,0.000179,2]
[404557577,1770288644856,-684.03752741,0.000179,2]
[404557578,1770288644866,-3195.54718714,0.000179,2]
[404557579,1770288644875,-14215.0,0.000179,2]
[404557580,1770288644885,-436.0,0.00017918,2]
[404557581,1770288644894,-1000.0,0.00017951,2]
[404557582,1770288644903,-256.366,0.00017951,2]
[404557583,1770288644912,-431.0,0.0001796,2]
[404557584,1770288644921,-700.0,0.0001797,2]
[404557585,1770288644930,-1101.54215647,0.0001797,2]
[404557586,1770288644939,-436.0,0.00017972,2]
[404557587,1770288644948,-500.0,0.00017973,2]
[404557588,1770288644957,-500.0,0.00017973,2]
[404557589,1770288644966,-500.0,0.00017973,2]
[404557590,1770288644975,-500.0,0.00017973,2]
[404557591,1770288644984,-309.44398841,0.00017973,2]
[404557592,1770288644993,-500.0,0.00017973,2]
[404557593,1770288645002,-500.0,0.00017973,2]
[404557594,1770288645010,-500.0,0.00017973,2]
[404557595,1770288645019,-561.5530591,0.00017973,2]
[404557596,1770288645028,-500.0,0.00017973,2]
[404557597,1770288645037,-500.0,0.00017973,2]
[404557598,1770288645046,-500.0,0.00017973,2]
[404557599,1770288645055,-500.0,0.00017973,2]
[404557600,1770288645064,-500.0,0.00017973,2]
[404557601,1770288645073,-500.0,0.00017973,2]
[404557602,1770288645082,-520.97702983,0.00017973,2]
[404557603,1770288645091,-500.0,0.00017973,2]
[404557604,1770288645101,-500.0,0.00017973,2]
[404557605,1770288645111,-500.0,0.00017973,2]
[404557606,1770288645120,-500.0,0.00017973,2]
[404557607,1770288645129,-500.0,0.00017973,2]
[404557608,1770288645139,-500.0,0.00017973,2]
[404557609,1770288645148,-500.0,0.00017973,2]
[404557610,1770288645158,-500.0,0.00017973,2]
[404557612,1770288645168,-500.0,0.00017973,2]
[404557613,1770288645177,-500.0,0.00017973,2]
[404557615,1770288645186,-500.0,0.00017973,2]
[404557617,1770288645195,-500.0,0.00017973,2]
[404557618,1770288645205,-500.0,0.00017973,2]
[404557619,1770288645214,-500.0,0.00017973,2]
[404557620,1770288645225,-502.08032841,0.00017973,2]
[404557621,1770288645234,-500.0,0.00017973,2]
[404557622,1770288645243,-500.0,0.00017973,2]
[404557623,1770288645252,-500.0,0.00017973,2]
[404557624,1770288645261,-160.11845722,0.00017973,2]
[404557625,1770288645271,-500.0,0.00017973,2]
[404557626,1770288645280,-500.0,0.00017973,2]
[404557627,1770288645289,-500.0,0.00017973,2]
[404557628,1770288645298,-262.39107038,0.00017973,2]
[404557629,1770288645307,-500.0,0.00017973,2]
[404557630,1770288645316,-500.0,0.00017973,2]
[404557631,1770288645325,-500.0,0.00017973,2]
[404557632,1770288645334,-500.0,0.00017973,2]
[404557633,1770288645344,-500.0,0.00017973,2]
[404557634,1770288645353,-500.0,0.00017989,2]
[404557635,1770288645540,-500.0,0.00017989,2]
[404557636,1770288645553,-200.0,0.00017998,2]
[404557637,1770288645563,-200.0,0.00017998,3]
[404557638,1770288645573,-200.0,0.00017998,4]
[404557639,1770288645582,-200.0,0.00017998,5]
[404557640,1770288645591,-323.11245023,0.00017998,6]
[404557641,1770288645600,-150.0,0.00017999,2]
[404557642,1770288645608,-150.0,0.00017999,2]
[404557643,1770288645620,-231.00018382,0.00017999,2]
[404557644,1770288645628,-155.0,0.00017999,2]
[404557645,1770288645637,-300.0,0.00017999,2]
[404557646,1770288645647,-300.0,0.00017999,2]
[404557647,1770288645656,-300.0,0.00017999,2]
[404557648,1770288645666,-300.0,0.00017999,2]
[404557649,1770288645675,-666.0,0.00017999,2]